bitfinex/quotes_BTCUSD_20250508
["timestamp","ask_amount","ask_price","bid_price","bid_amount"]
[1746720178745,0.66952043,100810.0,100800.0,0.7624331]
[1746720178950,1.04167947,100810.0,100800.0,0.53800605]
[1746720179178,1.04167947,100810.0,100800.0,0.55409978]
[1746720179582,1.04167947,100810.0,100800.0,0.05409978]
[1746720179784,0.94336534,100810.0,100800.0,0.04779978]
[1746720180200,1.04403226,100810.0,100800.0,0.03139978]
[1746720180404,0.94336534,100810.0,100800.0,0.03139978]
[1746720180778,1.2871299,100810.0,100800.0,0.01530605]
[1746720181009,1.2771299,100810.0,100800.0,0.01530605]
[1746720181211,0.23287397,100800.0,100790.0,0.00620449]
[1746720181413,0.61289465,100790.0,100780.0,0.03187138]
[1746720181615,1.00732613,100790.0,100780.0,0.03187138]
[1746720181830,1.0142826,100790.0,100780.0,0.03187138]
[1746720182049,1.0142826,100790.0,100780.0,0.01577765]
[1746720182242,1.38871408,100790.0,100780.0,0.00957316]
[1746720182458,1.10494952,100790.0,100780.0,0.0004716]
[1746720182909,1.33871408,100790.0,100780.0,0.0004716]
[1746720183113,0.58285909,100770.0,100760.0,0.04000156]
[1746720183313,0.56295668,100760.0,100750.0,0.52005416]
[1746720183507,0.95738816,100760.0,100750.0,0.52005416]
[1746720183714,1.36352132,100760.0,100750.0,0.48915416]
[1746720183920,1.49084074,100760.0,100750.0,0.48915416]
[1746720184131,1.49084074,100760.0,100750.0,0.4800526]
[1746720184537,1.49084074,100760.0,100740.0,0.08209521]
[1746720184538,0.56297737,100750.0,100740.0,0.08209521]
[1746720184743,0.28299806,100740.0,100730.0,0.1229803]
[1746720184955,1.04727355,100740.0,100730.0,0.04552895]
[1746720185172,1.05550196,100740.0,100730.0,0.04552895]
[1746720185596,1.05550196,100740.0,100730.0,0.00910156]
[1746720185817,1.05550196,100740.0,100710.0,0.30442903]
[1746720185818,0.57296747,100720.0,100710.0,0.30442903]
[1746720186012,1.05724296,100720.0,100710.0,0.32985853]
[1746720186225,0.45520777,100720.0,100710.0,0.35964564]
[1746720186428,0.84874416,100720.0,100710.0,0.33978753]
[1746720186643,1.06717058,100720.0,100710.0,0.31992903]
[1746720186843,1.06717107,100720.0,100710.0,0.12133946]
[1746720187044,1.05724315,100720.0,100710.0,0.12133946]
[1746720187248,1.05724315,100720.0,100710.0,0.10524573]
[1746720187454,0.45520777,100720.0,100710.0,0.34971678]
[1746720187665,0.85867208,100720.0,100710.0,0.33185887]
[1746720187876,0.86860039,100720.0,100710.0,0.34178797]
[1746720188047,0.84874406,100720.0,100710.0,0.35171678]
[1746720188257,0.87852801,100720.0,100710.0,0.35371678]
[1746720188434,0.49491944,100720.0,100710.0,0.35371678]
[1746720188798,0.45520777,100720.0,100710.0,0.3535365]
[1746720188997,0.45520777,100720.0,100710.0,0.85353659]
[1746720189226,0.87852841,100720.0,100710.0,0.62515918]
[1746720189387,0.8686,100720.0,100710.0,0.82374919]
[1746720189583,0.48499143,100720.0,100710.0,0.76071324]
[1746720189966,0.48499143,100720.0,100710.0,0.75078374]
[1746720190164,0.48499133,100720.0,100710.0,0.25078374]
[1746720190359,0.48499143,100720.0,100710.0,0.26071324]
[1746720190558,0.48499133,100720.0,100710.0,0.26071324]
[1746720190770,0.67363439,100720.0,100710.0,0.21868374]
[1746720190976,0.48499261,100720.0,100710.0,0.21868374]
[1746720191207,0.4750641,100720.0,100710.0,0.25038374]
[1746720191733,0.45520777,100720.0,100710.0,0.28017105]
[1746720191933,0.47506321,100720.0,100710.0,0.28017114]
[1746720192233,0.11520777,100720.0,100710.0,0.28017105]
[1746720192451,1.46849153,100720.0,100710.0,0.004]
[1746720192654,1.41488296,100720.0,100710.0,0.004]
[1746720193107,1.41488296,100720.0,100710.0,0.002]
[1746720193285,0.28306016,100710.0,100700.0,0.0152977]
[1746720193496,0.28306016,100710.0,100700.0,0.2647681]
[1746720193497,0.39358568,100710.0,100700.0,0.2647681]
[1746720193701,0.33365648,100710.0,100700.0,0.0462977]
[1746720193911,0.33365648,100710.0,100700.0,0.27469838]
[1746720194362,0.33365648,100710.0,100700.0,0.2647681]
[1746720194601,0.33365648,100710.0,100700.0,0.0462977]
[1746720194602,0.36379778,100710.0,100700.0,0.0462977]
[1746720194796,0.36379778,100710.0,100700.0,0.24490743]
[1746720195002,0.36379778,100710.0,100700.0,0.78086143]
[1746720195003,0.10066692,100710.0,100700.0,0.78086143]
[1746720195120,0.10066692,100710.0,100700.0,0.79079122]
[1746720195322,0.11520777,100710.0,100700.0,0.79079122]
[1746720195527,0.10066692,100710.0,100700.0,0.79079122]
[1746720195977,0.10314946,100710.0,100700.0,0.79079122]
[1746720196180,0.11307807,100710.0,100700.0,0.79079122]
[1746720196385,0.10314946,100710.0,100700.0,0.79079122]
[1746720196813,0.11520777,100710.0,100700.0,0.79079142]
[1746720197017,0.13754787,100710.0,100700.0,0.79279142]
[1746720197200,0.11520777,100710.0,100700.0,0.79479142]
[1746720197745,0.11520777,100710.0,100700.0,0.79279142]
[1746720197974,0.01985357,100730.0,100720.0,0.27524807]
[1746720198185,0.01985357,100730.0,100720.0,0.27524817]
[1746720198186,0.47044733,100730.0,100720.0,0.27524817]
[1746720198395,0.69346678,100730.0,100720.0,0.24546402]
[1746720198605,0.67361301,100730.0,100720.0,0.25539243]
[1746720198807,0.66368578,100730.0,100720.0,0.25539243]
[1746720198990,0.66368578,100730.0,100720.0,0.03625017]
[1746720199209,0.10066692,100730.0,100720.0,0.23482046]
[1746720199425,0.10066692,100730.0,100720.0,0.26460481]
[1746720199675,0.35819023,100740.0,100730.0,0.26678214]
[1746720199887,0.45885715,100740.0,100730.0,0.26664214]
[1746720200099,0.4687828,100740.0,100730.0,0.26664214]
[1746720200517,0.47870875,100740.0,100730.0,0.26664214]
[1746720200723,0.47870865,100740.0,100730.0,0.26664214]
[1746720200940,0.48863479,100740.0,100730.0,0.27656937]
[1746720201349,0.4932494,100740.0,100730.0,0.27656937]
[1746720201554,0.473398,100740.0,100730.0,0.77656937]
[1746720201839,0.10113715,100740.0,100730.0,0.77656937]
[1746720202027,0.00047023,100740.0,100730.0,0.77656937]
[1746720202457,0.02976937,100770.0,100760.0,0.26441415]
[1746720202665,0.32890855,100770.0,100760.0,0.2447064]
[1746720202871,0.13043679,100770.0,100760.0,0.25463057]
[1746720203089,0.14035928,100770.0,100760.0,0.26455445]
[1746720203298,0.67883104,100770.0,100760.0,0.25463057]
[1746720203506,0.44066692,100770.0,100760.0,0.27447853]
[1746720203720,0.1334359,100770.0,100760.0,0.27447853]
[1746720203917,0.10366692,100770.0,100760.0,0.27447853]
[1746720204124,0.003,100770.0,100760.0,0.27447853]
[1746720204568,0.002,100770.0,100760.0,0.77447853]
[1746720204812,0.01292289,100770.0,100760.0,0.77447853]
[1746720205043,0.02284598,100770.0,100760.0,0.77447853]
[1746720205260,0.02284588,100770.0,100760.0,0.77447853]
[1746720205486,0.1235128,100770.0,100760.0,0.77447853]
[1746720205724,0.14597674,100770.0,100760.0,0.77447853]
[1746720205937,0.15589993,100770.0,100760.0,0.77447853]
[1746720206151,0.11620777,100770.0,100760.0,0.77447853]
[1746720206359,0.001,100770.0,100760.0,0.77447853]
[1746720206811,0.0109227,100770.0,100760.0,0.77447853]
[1746720207013,0.001,100770.0,100760.0,0.78068423]
[1746720207218,0.001,100770.0,100760.0,1.18068423]
[1746720207427,0.001,100770.0,100760.0,1.18972956]
[1746720208391,0.34992024,100800.0,100790.0,0.25542529]
[1746720208392,0.58271464,100800.0,100790.0,0.25542529]
[1746720208594,0.68338156,100800.0,100790.0,0.24550407]
[1746720208802,0.67346132,100800.0,100790.0,0.03715017]
[1746720209001,0.67346132,100800.0,100790.0,0.24550407]
[1746720209200,0.67276729,100800.0,100790.0,0.24550407]
[1746720209420,0.46443378,100800.0,100790.0,0.02976367]
[1746720209632,0.48427366,100800.0,100790.0,0.22819605]
[1746720209890,0.02976337,100790.0,100780.0,0.20835687]
[1746720210089,0.28735662,100800.0,100790.0,0.34]
[1746720210260,0.29135662,100800.0,100790.0,0.53843238]
[1746720210648,0.30127715,100800.0,100790.0,0.84]
[1746720210875,0.29727715,100800.0,100790.0,0.84]
[1746720211070,0.74088572,100800.0,100790.0,0.5]
[1746720211271,0.30327715,100800.0,100790.0,0.5]
[1746720211445,0.34327715,100800.0,100790.0,0.5]
[1746720211649,0.22821868,100780.0,100770.0,0.55831853]
[1746720211880,0.00992073,100790.0,100780.0,0.22821888]
[1746720212092,0.12299015,100790.0,100780.0,0.21829677]
[1746720212263,0.01984176,100790.0,100780.0,0.56821868]
[1746720212480,0.01983821,100810.0,100800.0,0.2281732]
[1746720212769,0.12050454,100810.0,100800.0,0.60959363]
[1746720213017,0.14034295,100810.0,100800.0,0.59967369]
[1746720213261,0.33873685,100810.0,100800.0,0.57983332]
[1746720213484,0.31889893,100810.0,100800.0,0.34]
[1746720213897,0.22287397,100800.0,100790.0,0.34]
[1746720214081,0.12050768,100800.0,100790.0,0.58991483]
[1746720214308,0.3288409,100800.0,100790.0,0.5799942]
[1746720214535,0.31892057,100800.0,100790.0,0.3716403]
[1746720215019,0.31892057,100800.0,100790.0,0.58991542]
[1746720215440,0.31892057,100800.0,100790.0,0.59983664]
[1746720215659,0.12050749,100800.0,100790.0,0.60975757]
[1746720215859,0.12050749,100800.0,100790.0,1.10975757]
[1746720215973,0.12050749,100800.0,100790.0,1.10975776]
[1746720216195,0.00991925,100810.0,100800.0,0.21825326]
[1746720216405,0.12050513,100810.0,100800.0,0.26849324]
[1746720216609,0.32881759,100810.0,100800.0,0.24865326]
[1746720216810,0.32881759,100810.0,100800.0,0.23873312]
[1746720217041,0.12050533,100810.0,100800.0,0.26849334]
[1746720217242,0.11258588,100810.0,100800.0,0.26849334]
[1746720217505,0.03175717,100810.0,100800.0,0.26849334]
[1746720217707,0.03375717,100810.0,100800.0,0.26849334]
[1746720217876,0.02383772,100810.0,100800.0,0.26849334]
[1746720218086,0.03375717,100810.0,100800.0,0.26849334]
[1746720218295,0.04367662,100810.0,100800.0,0.26849334]
[1746720218516,0.04367662,100810.0,100800.0,0.76849334]
[1746720218926,0.24206963,100810.0,100800.0,0.73873312]
[1746720219125,0.22223083,100810.0,100800.0,0.73873312]
[1746720219332,0.004,100810.0,100800.0,0.76849363]
[1746720219547,0.23215047,100810.0,100800.0,0.73873312]
[1746720219741,0.22223161,100810.0,100800.0,0.73873312]
[1746720219959,0.21231246,100810.0,100800.0,0.72881269]
[1746720220191,0.21231246,100810.0,100800.0,0.73873332]
[1746720220342,0.21231246,100810.0,100800.0,0.74865375]
[1746720220496,0.21231246,100810.0,100800.0,0.5304]
[1746720220708,0.30305993,100810.0,100800.0,0.5304]
[1746720220929,0.31760078,100810.0,100800.0,0.5]
[1746720221144,0.70120935,100810.0,100800.0,0.5]
[1746720221353,0.75120935,100810.0,100800.0,0.5]
[1746720221753,1.08370935,100810.0,100800.0,0.5]
[1746720221965,0.25833312,100800.0,100790.0,0.0001403]
[1746720222189,0.35900004,100800.0,100790.0,0.0001403]
[1746720222806,0.74260861,100800.0,100790.0,0.0001403]
[1746720223252,0.35900004,100800.0,100790.0,0.0001403]
[1746720223651,0.74260861,100800.0,100790.0,0.0001403]
[1746720223871,1.05714946,100800.0,100790.0,0.0001403]
[1746720224492,1.07524946,100800.0,100790.0,0.0001403]
[1746720224674,1.09044946,100800.0,100790.0,0.0001403]
[1746720225162,1.09005956,100800.0,100790.0,0.0001403]
[1746720225584,1.09205956,100800.0,100790.0,0.0001403]
[1746720226002,1.09005956,100800.0,100790.0,0.0001403]
[1746720226212,1.08805956,100800.0,100790.0,0.0001403]
[1746720226643,1.10675956,100800.0,100790.0,0.0001403]
[1746720226858,0.32492037,100800.0,100790.0,0.0001403]
[1746720227126,0.36500004,100800.0,100790.0,0.0001403]
[1746720227345,0.38554089,100800.0,100790.0,0.0001403]
[1746720228199,0.37954089,100800.0,100790.0,0.5001403]
[1746720228450,0.38354089,100800.0,100790.0,0.5001403]
[1746720228666,0.77675956,100800.0,100790.0,0.5001403]
[1746720228904,1.12650027,100800.0,100790.0,0.5001403]
[1746720229116,1.09690027,100800.0,100790.0,0.5001403]
[1746720229338,1.08115956,100800.0,100790.0,0.5001403]
[1746720229551,1.08115956,100800.0,100790.0,0.0001403]
[1746720229552,1.08810072,100800.0,100790.0,0.0001403]
[1746720229753,1.12170072,100800.0,100790.0,0.0001403]
[1746720229955,1.07170072,100800.0,100790.0,0.0001403]
[1746720230790,1.10330072,100800.0,100790.0,0.0001403]
[1746720231192,1.08670072,100800.0,100790.0,0.0001403]
[1746720231409,1.07170072,100800.0,100790.0,0.0001403]
[1746720232694,1.16236764,100800.0,100790.0,0.0001403]
[1746720232900,1.07170072,100800.0,100790.0,0.0001403]
[1746720233549,1.09310072,100800.0,100790.0,0.0001403]
[1746720233767,1.27761705,100800.0,100790.0,0.0001403]
[1746720235199,1.24621705,100800.0,100790.0,0.0001403]
[1746720235408,0.97234955,100800.0,100790.0,0.0001403]
[1746720236003,1.25621705,100800.0,100790.0,0.0001403]
[1746720236625,1.35688397,100800.0,100790.0,0.0001403]
[1746720236787,0.97234955,100800.0,100790.0,0.0001403]
[1746720236999,1.25621705,100800.0,100790.0,0.0001403]
[1746720237207,1.27831705,100800.0,100790.0,0.0001403]
[1746720238019,0.23285909,100770.0,100760.0,0.23019125]
[1746720238224,0.33352601,100770.0,100760.0,0.23019125]
[1746720238647,0.32360292,100770.0,100760.0,0.23019125]
[1746720239249,0.32360292,100770.0,100760.0,0.73219125]
[1746720239731,0.12513086,100770.0,100760.0,0.73219125]
[1746720239872,0.12513086,100770.0,100760.0,0.75204019]
[1746720239873,0.13505366,100770.0,100760.0,0.75204019]
[1746720240086,0.13505366,100770.0,100760.0,0.76296446]
[1746720240324,0.11520777,100770.0,100760.0,0.78281251]
[1746720240509,0.00992191,100780.0,100770.0,0.23075401]
[1746720240713,0.3288856,100780.0,100770.0,0.23075401]
[1746720240875,0.31896369,100780.0,100770.0,0.23075401]
[1746720241075,0.10066692,100780.0,100770.0,0.24067759]
[1746720241278,0.34342675,100780.0,100770.0,0.23075401]
[1746720242265,0.34342675,100780.0,100770.0,0.73075401]
[1746720242982,0.33350474,100780.0,100770.0,0.73075401]
[1746720243782,0.13505208,100780.0,100770.0,0.5]
[1746720243979,0.01985633,100720.0,100710.0,0.0312]
[1746720244208,0.23294985,100730.0,100710.0,0.0297879]
[1746720244420,0.11059366,100730.0,100720.0,0.50229432]
[1746720244670,0.66228525,100760.0,100740.0,0.23398326]
[1746720244890,0.66228525,100760.0,100740.0,0.23965721]
[1746720244891,0.35341917,100750.0,100740.0,0.23965721]
[1746720245122,0.33356954,100750.0,100740.0,0.23965741]
[1746720245344,0.33356954,100750.0,100740.0,0.22973087]
[1746720245990,0.60046615,100760.0,100750.0,0.24996178]
[1746720246232,0.70113307,100760.0,100750.0,0.23011116]
[1746720246452,0.97507659,100760.0,100750.0,0.0316]
[1746720246674,0.22297737,100750.0,100740.0,0.5316]
[1746720246872,0.32364429,100750.0,100740.0,0.5316]
[1746720247531,0.60751179,100750.0,100740.0,0.5]
[1746720247953,0.32364429,100750.0,100740.0,0.5]
[1746720248391,0.33356955,100750.0,100740.0,0.70845731]
[1746720248609,0.10066692,100750.0,100740.0,0.7595093]
[1746720248850,0.35766102,100760.0,100750.0,0.25006197]
[1746720249066,0.68659251,100760.0,100750.0,0.23021116]
[1746720249273,0.67666824,100760.0,100750.0,0.0317]
[1746720249504,0.69120909,100760.0,100750.0,0.0317]
[1746720249722,0.69120909,100760.0,100750.0,0.23021116]
[1746720249933,0.70113366,100760.0,100750.0,0.0317]
[1746720250150,0.69320929,100760.0,100750.0,0.0317]
[1746720250362,0.69520929,100760.0,100750.0,0.5317]
[1746720250813,0.97907679,100760.0,100750.0,0.5]
[1746720250993,0.69520929,100760.0,100750.0,0.5]
[1746720251453,0.71375344,100760.0,100750.0,0.5]
[1746720252891,0.71375344,100760.0,100750.0,0.5166]
[1746720253155,0.71375344,100760.0,100750.0,0.5]
[1746720255070,0.71375344,100760.0,100750.0,0.0321]
[1746720255544,0.71375344,100760.0,100750.0,0.0162]
[1746720255823,0.02977774,100740.0,100730.0,0.59893234]
[1746720256051,0.02977774,100740.0,100730.0,0.60885927]
[1746720256253,0.00992565,100740.0,100730.0,0.89272677]
[1746720256453,0.0198515,100740.0,100730.0,0.89272677]
[1746720256675,0.06286087,100750.0,100740.0,0.2283096]
[1746720256876,0.15490821,100750.0,100740.0,0.5439771]
[1746720257076,0.33887911,100750.0,100740.0,0.25018365]
[1746720257288,0.32895405,100750.0,100740.0,0.53405115]
[1746720257488,0.31902889,100750.0,100740.0,0.53405135]
[1746720257640,0.32895444,100750.0,100740.0,0.55390374]
[1746720257852,0.32895444,100750.0,100740.0,0.54397769]
[1746720258056,0.32895444,100750.0,100740.0,0.53405135]
[1746720258414,0.31902908,100750.0,100740.0,0.24025731]
[1746720258609,0.31902908,100750.0,100740.0,0.75018365]
[1746720258771,0.31902908,100750.0,100740.0,0.74025731]
[1746720258968,0.31902908,100750.0,100740.0,0.75018355]
[1746720259194,0.31902908,100750.0,100740.0,1.03405105]
[1746720259399,0.00014102,100760.0,100750.0,0.05997577]
[1746720259615,0.00014102,100760.0,100750.0,0.55227929]
[1746720259769,0.00014102,100760.0,100750.0,0.95227929]
[1746720260170,0.00014102,100760.0,100750.0,0.55227929]
[1746720260377,0.00014102,100760.0,100750.0,1.05227929]
[1746720260578,0.00014102,100760.0,100750.0,1.05997121]
[1746720260779,0.00014102,100760.0,100750.0,1.45227929]
[1746720261012,0.00214102,100760.0,100750.0,1.89294621]
[1746720262473,0.00014102,100760.0,100750.0,1.89294621]
[1746720262914,0.01998888,100760.0,100750.0,1.79227929]
[1746720263099,0.0100648,100760.0,100750.0,1.79327929]
[1746720263352,0.00014102,100760.0,100750.0,1.79327929]
[1746720263556,0.0100648,100760.0,100750.0,1.79527929]
[1746720263936,0.0100648,100760.0,100750.0,1.51141179]
[1746720264142,0.0100648,100760.0,100750.0,1.79527929]
[1746720264522,0.01998868,100760.0,100750.0,1.79527968]
[1746720265133,0.0100648,100760.0,100750.0,1.79527968]
[1746720265331,0.01998868,100760.0,100750.0,1.79527968]
[1746720265535,0.0100648,100760.0,100750.0,1.79527968]
[1746720265735,0.02991295,100760.0,100750.0,1.79527968]
[1746720266140,0.23832859,100760.0,100750.0,1.49156216]
[1746720266355,0.21848093,100760.0,100750.0,0.5332]
[1746720266703,0.3753845,100760.0,100750.0,0.503]
[1746720266924,0.3336887,100760.0,100750.0,0.503]
[1746720267309,0.3336887,100760.0,100750.0,0.70151116]
[1746720267537,0.3336887,100760.0,100750.0,0.73331116]
[1746720267739,0.32376462,100760.0,100750.0,0.73331116]
[1746720268116,0.32376462,100760.0,100750.0,0.74323661]
[1746720268320,0.32376462,100760.0,100750.0,0.73331116]
[1746720268528,0.32376462,100760.0,100750.0,0.5348]
[1746720268894,0.32376462,100760.0,100750.0,0.74323661]
[1746720269115,0.32376462,100760.0,100750.0,0.73331116]
[1746720269332,0.32376462,100760.0,100750.0,0.75316197]
[1746720269542,0.32376462,100760.0,100750.0,0.5348]
[1746720273285,0.32376462,100760.0,100750.0,0.5318]
[1746720273506,0.32576462,100760.0,100750.0,0.5318]
[1746720274583,0.32776462,100760.0,100750.0,0.5318]
[1746720275070,0.32776462,100760.0,100750.0,0.5]
[1746720275071,1.07285965,100760.0,100750.0,0.5]
[1746720275207,0.20851931,100710.0,100700.0,0.0463977]
[1746720275408,0.32372708,100710.0,100700.0,0.0463977]
[1746720276437,0.32372708,100710.0,100700.0,0.2648681]
[1746720276438,0.31911543,100710.0,100700.0,0.2648681]
[1746720276627,0.32904483,100710.0,100700.0,0.26533852]
[1746720276853,0.31911563,100710.0,100700.0,0.7752688]
[1746720277055,0.30918633,100710.0,100700.0,0.74547766]
[1746720277255,0.01985594,100720.0,100710.0,0.26067702]
[1746720277548,0.58593217,100730.0,100720.0,0.2407987]
[1746720277749,0.57546293,100730.0,100720.0,0.25072691]
[1746720277957,0.57546293,100730.0,100720.0,0.26065503]
[1746720278142,0.58538987,100730.0,100720.0,0.2407987]
[1746720278394,0.57546284,100730.0,100720.0,0.25072701]
[1746720278605,0.57546284,100730.0,100720.0,0.2407987]
[1746720278748,0.57846284,100730.0,100720.0,0.7407987]
[1746720278963,0.56853551,100730.0,100720.0,0.7407987]
[1746720279168,0.56553551,100730.0,100720.0,0.73087029]
[1746720279341,0.656275,100730.0,100720.0,0.5323]
[1746720279550,0.67181585,100730.0,100720.0,0.5]
[1746720279915,0.67581585,100730.0,100720.0,0.5]
[1746720280115,1.055313,100730.0,100720.0,0.5]
[1746720280402,1.099913,100730.0,100720.0,0.5]
[1746720280617,1.45843056,100730.0,100720.0,0.5]
[1746720281046,1.07493341,100730.0,100720.0,0.5]
[1746720281271,0.23298916,100710.0,100700.0,0.01576793]
[1746720281482,0.33365608,100710.0,100700.0,0.01576793]
[1746720282304,0.33365608,100710.0,100700.0,0.01776793]
[1746720282712,0.33365608,100710.0,100700.0,0.51776793]
[1746720283192,0.33365608,100710.0,100700.0,0.51976793]
[1746720283410,0.33365608,100710.0,100700.0,0.55076793]
[1746720283596,0.31379778,100710.0,100700.0,0.74937766]
[1746720283832,0.32372708,100710.0,100700.0,0.55076793]
[1746720284295,0.32372708,100710.0,100700.0,0.51776793]
[1746720284577,0.32372708,100710.0,100700.0,0.51576793]
[1746720285493,0.32372708,100710.0,100700.0,0.76583813]
[1746720285494,0.31911523,100710.0,100700.0,0.76583813]
[1746720285719,0.12052463,100710.0,100700.0,0.77576822]
[1746720285941,0.32904394,100710.0,100700.0,0.77576822]
[1746720286149,0.31911523,100710.0,100700.0,0.74597766]
[1746720286384,0.31911523,100710.0,100700.0,0.76583832]
[1746720286601,0.31911523,100710.0,100700.0,0.75590814]
[1746720286806,0.30918623,100710.0,100700.0,0.71437766]
[1746720287016,0.30918623,100710.0,100700.0,0.76493833]
[1746720287223,0.30918623,100710.0,100700.0,0.75500814]
[1746720287470,0.32904463,100710.0,100700.0,0.76493852]
[1746720287660,0.33897413,100710.0,100700.0,0.7748688]
[1746720287915,0.32904513,100710.0,100700.0,0.78479879]
[1746720288161,0.00992723,100730.0,100720.0,0.0311]
[1746720288392,0.00992723,100730.0,100720.0,0.22967029]
[1746720288393,0.32899958,100730.0,100720.0,0.22967029]
[1746720288615,0.31907235,100730.0,100720.0,0.0311]
[1746720289242,0.02978731,100710.0,100700.0,1.4478048]
[1746720289473,0.01985791,100710.0,100700.0,1.08933744]
[1746720289674,0.02978721,100710.0,100700.0,0.60919761]
[1746720289879,0.02978721,100710.0,100700.0,1.00789476]
[1746720290055,0.22837722,100710.0,100700.0,0.99796497]
[1746720290257,0.01985791,100710.0,100700.0,0.99796497]
[1746720290473,0.01985791,100710.0,100700.0,1.00789476]
[1746720290870,0.01985791,100710.0,100700.0,1.00989476]
[1746720291078,0.02978711,100710.0,100700.0,1.50989476]
[1746720291278,0.02978711,100710.0,100700.0,1.51189476]
[1746720291715,0.01985791,100710.0,100700.0,1.51189476]
[1746720292581,0.02978711,100710.0,100700.0,1.51189476]
[1746720292995,0.03971641,100710.0,100700.0,1.91189476]
[1746720293269,0.03971641,100710.0,100700.0,0.51976793]
[1746720293270,0.40623672,100710.0,100700.0,0.51976793]
[1746720293478,0.38637842,100710.0,100700.0,0.01976793]
[1746720294104,0.38637842,100710.0,100700.0,0.01776793]
[1746720294312,0.33365648,100710.0,100700.0,0.01576793]
[1746720294551,0.33565648,100710.0,100700.0,0.01576793]
[1746720294757,0.33765648,100710.0,100700.0,0.01576793]
[1746720294964,0.33765648,100710.0,100700.0,0.51576793]
[1746720297143,0.33765648,100710.0,100700.0,0.54746793]
[1746720297859,0.33765648,100710.0,100700.0,0.83163088]
[1746720298281,0.32772718,100710.0,100700.0,0.83163088]
[1746720298489,0.32772718,100710.0,100700.0,0.51576793]
[1746720299680,0.34625037,100710.0,100700.0,0.51576793]
[1746720299894,0.34625037,100710.0,100700.0,0.79993088]
[1746720300275,0.32772718,100710.0,100700.0,0.79993088]
[1746720300482,0.32772718,100710.0,100700.0,1.04097109]
[1746720300859,0.32772718,100710.0,100700.0,1.34499451]
[1746720300860,0.10466692,100710.0,100700.0,1.34499451]
[1746720301072,0.14438333,100710.0,100700.0,1.34499451]
[1746720301287,0.14438333,100710.0,100700.0,0.83243088]
[1746720301288,0.34297334,100710.0,100700.0,0.83243088]
[1746720301495,0.32311563,100710.0,100690.0,0.2284171]
[1746720301749,0.02432774,100710.0,100700.0,0.79672589]
[1746720302070,0.00247003,100710.0,100700.0,0.79672589]
[1746720302307,0.02232754,100710.0,100700.0,0.79672589]
[1746720302720,0.24077625,100710.0,100700.0,0.78679629]
[1746720302931,0.23877625,100710.0,100700.0,1.30665637]
[1746720303136,0.23877625,100710.0,100700.0,1.32261521]
[1746720303378,0.00247003,100710.0,100700.0,1.732545]
[1746720303588,0.00247003,100710.0,100700.0,2.072545]
[1746720304409,0.00047003,100710.0,100700.0,2.072545]
[1746720304613,0.00047003,100710.0,100700.0,2.104245]
[1746720304852,0.00047003,100710.0,100700.0,1.95679056]
[1746720305239,0.22833206,100730.0,100720.0,0.22835484]
[1746720305459,0.03970852,100730.0,100720.0,0.55484561]
[1746720305656,0.20631732,100740.0,100720.0,0.5449167]
[1746720305873,0.36768506,100750.0,100740.0,0.23823564]
[1746720306075,0.19849146,100760.0,100750.0,0.21836177]
[1746720306076,0.01984864,100760.0,100750.0,0.21836177]
[1746720306292,0.00992467,100750.0,100740.0,0.53494542]
[1746720306514,0.03969986,100750.0,100740.0,0.81910837]
[1746720306741,0.0297745,100750.0,100740.0,1.31910837]
[1746720306933,0.23821102,100750.0,100740.0,1.29925677]
[1746720307266,0.22828635,100750.0,100740.0,1.3512006]
[1746720307497,0.03177558,100750.0,100740.0,1.36112645]
[1746720307702,0.23028674,100750.0,100740.0,1.33443491]
[1746720307908,0.24021258,100750.0,100740.0,0.93089673]
[1746720308117,0.23228752,100750.0,100740.0,1.11688058]
[1746720308326,0.23228752,100750.0,100740.0,1.13673297]
[1746720308507,0.004,100750.0,100740.0,1.17755882]
[1746720309037,0.22236158,100750.0,100740.0,0.52215668]
[1746720309272,0.22236158,100750.0,100740.0,0.90532785]
[1746720309475,0.22236158,100750.0,100740.0,0.89911969]
[1746720309709,0.22236158,100750.0,100740.0,0.89621045]
[1746720309912,0.22236158,100750.0,100740.0,0.88937933]
[1746720310122,0.22236158,100750.0,100740.0,1.09783654]
[1746720310331,0.004,100750.0,100740.0,1.34641421]
[1746720310766,0.004,100750.0,100740.0,1.44708113]
[1746720310984,0.02384963,100750.0,100740.0,1.43715528]
[1746720311172,0.02977557,100750.0,100740.0,1.33338555]
[1746720311386,0.01985012,100750.0,100740.0,1.36316359]
[1746720311636,0.04170005,100750.0,100740.0,1.36516359]
[1746720311880,0.23028654,100750.0,100740.0,1.35523823]
[1746720312082,0.23028654,100750.0,100740.0,1.09592814]
[1746720312300,0.22036207,100750.0,100740.0,1.08910501]
[1746720312509,0.22036207,100750.0,100740.0,1.28142772]
[1746720312693,0.21836207,100750.0,100740.0,1.08289685]
[1746720313113,0.21836207,100750.0,100740.0,1.29535426]
[1746720313326,0.20843652,100750.0,100740.0,1.29535426]
[1746720313529,0.20843652,100750.0,100740.0,1.08689685]
[1746720313934,0.20843652,100750.0,100740.0,1.29535426]
[1746720314141,0.19851116,100750.0,100740.0,1.08689685]
[1746720314367,0.19851116,100750.0,100740.0,1.30156197]
[1746720314792,0.20843652,100750.0,100740.0,1.32141436]
[1746720315048,0.01468187,100760.0,100740.0,1.33801327]
[1746720315255,0.0100649,100760.0,100750.0,0.62138296]
[1746720315462,0.0100649,100760.0,100750.0,0.99268296]
[1746720315463,0.00014102,100760.0,100750.0,0.99268296]
[1746720315695,0.00014102,100760.0,100750.0,1.39268296]
[1746720315906,0.03983693,100760.0,100750.0,1.74668522]
[1746720316144,0.22096209,100760.0,100750.0,1.48709809]
[1746720316353,0.21848093,100760.0,100750.0,0.71301581]
[1746720316560,0.21848093,100760.0,100750.0,1.31454895]
[1746720316770,0.21848093,100760.0,100750.0,1.32447401]
[1746720316991,0.21848093,100760.0,100750.0,1.33439897]
[1746720317203,0.3500648,100760.0,100750.0,0.65152383]
[1746720317408,0.01998878,100760.0,100750.0,0.67142383]
[1746720317614,0.02991295,100760.0,100750.0,0.66480802]
[1746720317822,0.01998878,100760.0,100750.0,0.66580802]
[1746720318030,0.02991305,100760.0,100750.0,0.66580802]
[1746720318257,0.23088644,100760.0,100750.0,0.38617117]
[1746720318470,0.01998927,100760.0,100750.0,0.63653285]
[1746720318688,0.2284051,100760.0,100750.0,0.21143652]
[1746720318896,0.21848112,100760.0,100750.0,0.59460778]
[1746720319099,0.21848112,100760.0,100750.0,0.60453314]
[1746720319313,0.21848112,100760.0,100750.0,1.1144583]
[1746720319757,0.32376462,100760.0,100750.0,0.503]
[1746720319993,0.37598835,100760.0,100750.0,0.503]
[1746720320199,0.33976462,100760.0,100750.0,0.503]
[1746720320835,0.33976374,100760.0,100750.0,0.70151116]
[1746720321038,0.32376374,100760.0,100750.0,1.09260778]
[1746720321241,0.32376374,100760.0,100750.0,1.09160769]
[1746720321450,0.32576374,100760.0,100750.0,1.09160778]
[1746720321670,0.00214014,100760.0,100750.0,1.1114578]
[1746720321881,0.00214014,100760.0,100750.0,1.1431578]
[1746720322114,0.00414014,100760.0,100750.0,1.1431578]
[1746720322333,0.23240412,100760.0,100750.0,1.11338233]